{"text_format":"1","workbook":"xlsx","n_sheets":1,"sheets":["Tabelle1"],"not_rendered":{"charts":0,"images":0,"macros":1,"external_links":0,"defined_names":0,"comments":0,"pivot_tables":0},"unopened":[],"bounds":{"document_bytes":16777216,"sheet_cells":100000,"rows_first":2000,"rows_last":500,"rows_between":2000,"halvings":0,"cell_chars":16384,"cell_head_chars":4096},"cells_cut":0,"cells_raw":0,"read":"whole","date_system":"1900"}

{"sheet":"Tabelle1","index":0,"n_rows":507,"n_cols":10,"rows_kept":507,"cut":false,"hidden":false,"merged":[]}
[]
[null,"Einzelbeträge",null,"ges. Summe:",null,"        Hier stehen dann die gefundenen Beträge!"]
[null,0.01,null,4.5199999999999996,null,"#","X1","X2","X3","Probe:"]
[null,0.02,null,null,null,1,null,null,null,{"$f":"SUM(G4:I4)","v":0}]
[null,0.03,null,"(Markiere B3:B506",null,2,null,null,null,{"$f":"SUM(G5:I5)","v":0}]
[null,0.04,null,"dann bei gedrückter",null,3,null,null,null,0]
[null,0.05,null,"Strg-Taste auch ",null,4,null,null,null,0]
[null,0.06,null,"D3 markieren!",null,5,null,null,null,0]
[null,7.0000000000000007E-2,null,"Makro starten.)",null,6,null,null,null,0]
[null,0.08,null,"( Das kann einige",null,7,null,null,null,0]
[null,0.09,null,"Sekunden dauern! )",null,8,null,null,null,0]
[null,0.1,null,null,null,9,null,null,null,0]
[null,0.11,null,null,null,10,null,null,null,0]
[null,0.12,null,null,null,11,null,null,null,0]
[null,0.13,null,null,null,12,null,null,null,0]
[null,0.14000000000000001,null,null,null,13,null,null,null,0]
[null,0.15,null,null,null,14,null,null,null,0]
[null,0.16,null,null,null,15,null,null,null,0]
[null,0.17,null,null,null,16,null,null,null,0]
[null,0.18,null,null,null,17,null,null,null,0]
[null,0.19,null,null,null,18,null,null,null,0]
[null,0.2,null,null,null,19,null,null,null,0]
[null,0.21,null,null,null,20,null,null,null,0]
[null,0.22,null,null,null,21,null,null,null,0]
[null,0.23,null,null,null,22,null,null,null,0]
[null,0.24,null,null,null,23,null,null,null,0]
[null,0.25,null,null,null,24,null,null,null,0]
[null,0.26,null,null,null,25,null,null,null,0]
[null,0.27,null,null,null,26,null,null,null,0]
[null,0.28000000000000003,null,null,null,27,null,null,null,0]
[null,0.28999999999999998,null,null,null,28,null,null,null,0]
[null,0.3,null,null,null,29,null,null,null,0]
[null,0.31,null,null,null,30,null,null,null,0]
[null,0.32,null,null,null,31,null,null,null,0]
[null,0.33,null,null,null,32,null,null,null,0]
[null,0.34,null,null,null,33,null,null,null,0]
[null,0.35,null,null,null,34,null,null,null,0]
[null,0.36,null,null,null,35,null,null,null,0]
[null,0.37,null,null,null,36,null,null,null,0]
[null,0.38,null,null,null,37,null,null,null,0]
[null,0.39,null,null,null,38,null,null,null,0]
[null,0.4,null,null,null,39,null,null,null,0]
[null,0.41,null,null,null,40,null,null,null,0]
[null,0.42,null,null,null,41,null,null,null,0]
[null,0.43,null,null,null,42,null,null,null,0]
[null,0.44,null,null,null,43,null,null,null,0]
[null,0.45,null,null,null,44,null,null,null,0]
[null,0.46,null,null,null,45,null,null,null,0]
[null,0.47,null,null,null,46,null,null,null,0]
[null,0.48,null,null,null,47,null,null,null,0]
[null,0.49,null,null,null,48,null,null,null,0]
[null,0.5,null,null,null,49,null,null,null,0]
[null,0.51,null,null,null,50,null,null,null,0]
[null,0.52,null,null,null,51,null,null,null,0]
[null,0.53,null,null,null,52,null,null,null,0]
[null,0.54,null,null,null,53,null,null,null,0]
[null,0.55000000000000004,null,null,null,54,null,null,null,0]
[null,0.56000000000000005,null,null,null,55,null,null,null,0]
[null,0.56999999999999995,null,null,null,56,null,null,null,0]
[null,0.57999999999999996,null,null,null,57,null,null,null,0]
[null,0.59,null,null,null,58,null,null,null,0]
[null,0.6,null,null,null,59,null,null,null,0]
[null,0.61,null,null,null,60,null,null,null,0]
[null,0.62,null,null,null,61,null,null,null,0]
[null,0.63,null,null,null,62,null,null,null,0]
[null,0.64,null,null,null,63,null,null,null,0]
[null,0.65,null,null,null,64,null,null,null,0]
[null,0.66,null,null,null,65,null,null,null,0]
[null,0.67,null,null,null,66,null,null,null,{"$f":"SUM(G69:I69)","v":0}]
[null,0.68,null,null,null,67,null,null,null,0]
[null,0.69,null,null,null,68,null,null,null,0]
[null,0.7,null,null,null,69,null,null,null,0]
[null,0.71,null,null,null,70,null,null,null,0]
[null,0.72,null,null,null,71,null,null,null,0]
[null,0.73,null,null,null,72,null,null,null,0]
[null,0.74,null,null,null,73,null,null,null,0]
[null,0.75,null,null,null,74,null,null,null,0]
[null,0.76,null,null,null,75,null,null,null,0]
[null,0.77,null,null,null,76,null,null,null,0]
[null,0.78,null,null,null,77,null,null,null,0]
[null,0.79,null,null,null,78,null,null,null,0]
[null,0.8,null,null,null,79,null,null,null,0]
[null,0.81,null,null,null,80,null,null,null,0]
[null,0.82,null,null,null,81,null,null,null,0]
[null,0.83,null,null,null,82,null,null,null,0]
[null,0.84,null,null,null,83,null,null,null,0]
[null,0.85,null,null,null,84,null,null,null,0]
[null,0.86,null,null,null,85,null,null,null,0]
[null,0.87,null,null,null,86,null,null,null,0]
[null,0.88,null,null,null,87,null,null,null,0]
[null,0.89,null,null,null,88,null,null,null,0]
[null,0.9,null,null,null,89,null,null,null,0]
[null,0.91,null,null,null,90,null,null,null,0]
[null,0.92,null,null,null,91,null,null,null,0]
[null,0.93,null,null,null,92,null,null,null,0]
[null,0.94,null,null,null,93,null,null,null,0]
[null,0.95,null,null,null,94,null,null,null,0]
[null,0.96,null,null,null,95,null,null,null,0]
[null,0.97,null,null,null,96,null,null,null,0]
[null,0.98,null,null,null,97,null,null,null,0]
[null,0.99,null,null,null,98,null,null,null,0]
[null,1,null,null,null,99,null,null,null,0]
[null,1.01,null,null,null,100,null,null,null,0]
[null,1.02,null,null,null,101,null,null,null,0]
[null,1.03,null,null,null,102,null,null,null,0]
[null,1.04,null,null,null,103,null,null,null,0]
[null,1.05,null,null,null,104,null,null,null,0]
[null,1.06,null,null,null,105,null,null,null,0]
[null,1.07,null,null,null,106,null,null,null,0]
[null,1.08,null,null,null,107,null,null,null,0]
[null,1.0900000000000001,null,null,null,108,null,null,null,0]
[null,1.1000000000000001,null,null,null,109,null,null,null,0]
[null,1.1100000000000001,null,null,null,110,null,null,null,0]
[null,1.1200000000000001,null,null,null,111,null,null,null,0]
[null,1.1299999999999999,null,null,null,112,null,null,null,0]
[null,1.1399999999999999,null,null,null,113,null,null,null,0]
[null,1.1499999999999999,null,null,null,114,null,null,null,0]
[null,1.1599999999999999,null,null,null,115,null,null,null,0]
[null,1.17,null,null,null,116,null,null,null,0]
[null,1.18,null,null,null,117,null,null,null,0]
[null,1.19,null,null,null,118,null,null,null,0]
[null,1.2,null,null,null,119,null,null,null,0]
[null,1.21,null,null,null,120,null,null,null,0]
[null,1.22,null,null,null,121,null,null,null,0]
[null,1.23,null,null,null,122,null,null,null,0]
[null,1.24,null,null,null,123,null,null,null,0]
[null,1.25,null,null,null,124,null,null,null,0]
[null,1.26,null,null,null,125,null,null,null,0]
[null,1.27,null,null,null,126,null,null,null,0]
[null,1.28,null,null,null,127,null,null,null,0]
[null,1.29,null,null,null,128,null,null,null,0]
[null,1.3,null,null,null,129,null,null,null,0]
[null,1.31,null,null,null,130,null,null,null,{"$f":"SUM(G133:I133)","v":0}]
[null,1.32,null,null,null,131,null,null,null,0]
[null,1.33,null,null,null,132,null,null,null,0]
[null,1.34,null,null,null,133,null,null,null,0]
[null,1.35,null,null,null,134,null,null,null,0]
[null,1.36,null,null,null,135,null,null,null,0]
[null,1.37,null,null,null,136,null,null,null,0]
[null,1.38,null,null,null,137,null,null,null,0]
[null,1.39,null,null,null,138,null,null,null,0]
[null,1.4,null,null,null,139,null,null,null,0]
[null,1.41,null,null,null,140,null,null,null,0]
[null,1.42,null,null,null,141,null,null,null,0]
[null,1.43,null,null,null,142,null,null,null,0]
[null,1.44,null,null,null,143,null,null,null,0]
[null,1.45,null,null,null,144,null,null,null,0]
[null,1.46,null,null,null,145,null,null,null,0]
[null,1.47,null,null,null,146,null,null,null,0]
[null,1.48,null,null,null,147,null,null,null,0]
[null,1.49,null,null,null,148,null,null,null,0]
[null,1.5,null,null,null,149,null,null,null,0]
[null,1.51,null,null,null,150,null,null,null,0]
[null,1.52,null,null,null,151,null,null,null,0]
[null,1.53,null,null,null,152,null,null,null,0]
[null,1.54,null,null,null,153,null,null,null,0]
[null,1.55,null,null,null,154,null,null,null,0]
[null,1.56,null,null,null,155,null,null,null,0]
[null,1.57,null,null,null,156,null,null,null,0]
[null,1.58,null,null,null,157,null,null,null,0]
[null,1.59,null,null,null,158,null,null,null,0]
[null,1.6,null,null,null,159,null,null,null,0]
[null,1.61,null,null,null,160,null,null,null,0]
[null,1.62,null,null,null,161,null,null,null,0]
[null,1.63,null,null,null,162,null,null,null,0]
[null,1.64,null,null,null,163,null,null,null,0]
[null,1.65,null,null,null,164,null,null,null,0]
[null,1.66,null,null,null,165,null,null,null,0]
[null,1.67,null,null,null,166,null,null,null,0]
[null,1.68,null,null,null,167,null,null,null,0]
[null,1.69,null,null,null,168,null,null,null,0]
[null,1.7,null,null,null,169,null,null,null,0]
[null,1.71,null,null,null,170,null,null,null,0]
[null,1.72,null,null,null,171,null,null,null,0]
[null,1.73,null,null,null,172,null,null,null,0]
[null,1.74,null,null,null,173,null,null,null,0]
[null,1.75,null,null,null,174,null,null,null,0]
[null,1.76,null,null,null,175,null,null,null,0]
[null,1.77,null,null,null,176,null,null,null,0]
[null,1.78,null,null,null,177,null,null,null,0]
[null,1.79,null,null,null,178,null,null,null,0]
[null,1.8,null,null,null,179,null,null,null,0]
[null,1.81,null,null,null,180,null,null,null,0]
[null,1.82,null,null,null,181,null,null,null,0]
[null,1.83,null,null,null,182,null,null,null,0]
[null,1.84,null,null,null,183,null,null,null,0]
[null,1.85,null,null,null,184,null,null,null,0]
[null,1.86,null,null,null,185,null,null,null,0]
[null,1.87,null,null,null,186,null,null,null,0]
[null,1.88,null,null,null,187,null,null,null,0]
[null,1.89,null,null,null,188,null,null,null,0]
[null,1.9,null,null,null,189,null,null,null,0]
[null,1.91,null,null,null,190,null,null,null,0]
[null,1.92,null,null,null,191,null,null,null,0]
[null,1.93,null,null,null,192,null,null,null,0]
[null,1.94,null,null,null,193,null,null,null,0]
[null,1.95,null,null,null,194,null,null,null,{"$f":"SUM(G197:I197)","v":0}]
[null,1.96,null,null,null,195,null,null,null,0]
[null,1.97,null,null,null,196,null,null,null,0]
[null,1.98,null,null,null,197,null,null,null,0]
[null,1.99,null,null,null,198,null,null,null,0]
[null,2,null,null,null,199,null,null,null,0]
[null,2.0099999999999998,null,null,null,200,null,null,null,0]
[null,2.02,null,null,null,201,null,null,null,0]
[null,2.0299999999999998,null,null,null,202,null,null,null,0]
[null,2.04,null,null,null,203,null,null,null,0]
[null,2.0499999999999998,null,null,null,204,null,null,null,0]
[null,2.06,null,null,null,205,null,null,null,0]
[null,2.0699999999999998,null,null,null,206,null,null,null,0]
[null,2.08,null,null,null,207,null,null,null,0]
[null,2.09,null,null,null,208,null,null,null,0]
[null,2.1,null,null,null,209,null,null,null,0]
[null,2.11,null,null,null,210,null,null,null,0]
[null,2.12,null,null,null,211,null,null,null,0]
[null,2.13,null,null,null,212,null,null,null,0]
[null,2.14,null,null,null,213,null,null,null,0]
[null,2.15,null,null,null,214,null,null,null,0]
[null,2.16,null,null,null,215,null,null,null,0]
[null,2.17,null,null,null,216,null,null,null,0]
[null,2.1800000000000002,null,null,null,217,null,null,null,0]
[null,2.19,null,null,null,218,null,null,null,0]
[null,2.2000000000000002,null,null,null,219,null,null,null,0]
[null,2.21,null,null,null,220,null,null,null,0]
[null,2.2200000000000002,null,null,null,221,null,null,null,0]
[null,2.23,null,null,null,222,null,null,null,0]
[null,2.2400000000000002,null,null,null,223,null,null,null,0]
[null,2.25,null,null,null,224,null,null,null,0]
[null,2.2599999999999998,null,null,null,225,null,null,null,0]
[null,2.27,null,null,null,226,null,null,null,0]
[null,2.2799999999999998,null,null,null,227,null,null,null,0]
[null,2.29,null,null,null,228,null,null,null,0]
[null,2.2999999999999998,null,null,null,229,null,null,null,0]
[null,2.31,null,null,null,230,null,null,null,0]
[null,2.3199999999999998,null,null,null,231,null,null,null,0]
[null,2.33,null,null,null,232,null,null,null,0]
[null,2.34,null,null,null,233,null,null,null,0]
[null,2.35,null,null,null,234,null,null,null,0]
[null,2.36,null,null,null,235,null,null,null,0]
[null,2.37,null,null,null,236,null,null,null,0]
[null,2.38,null,null,null,237,null,null,null,0]
[null,2.39,null,null,null,238,null,null,null,0]
[null,2.4,null,null,null,239,null,null,null,0]
[null,2.41,null,null,null,240,null,null,null,0]
[null,2.42,null,null,null,241,null,null,null,0]
[null,2.4300000000000002,null,null,null,242,null,null,null,0]
[null,2.44,null,null,null,243,null,null,null,0]
[null,2.4500000000000002,null,null,null,244,null,null,null,0]
[null,2.46,null,null,null,245,null,null,null,0]
[null,2.4700000000000002,null,null,null,246,null,null,null,0]
[null,2.48,null,null,null,247,null,null,null,0]
[null,2.4900000000000002,null,null,null,248,null,null,null,0]
[null,2.5,null,null,null,249,null,null,null,0]
[null,2.5099999999999998,null,null,null,250,null,null,null,0]
[null,2.52]
[null,2.5299999999999998]
[null,2.54]
[null,2.5499999999999998]
[null,2.56]
[null,2.57]
[null,2.58]
[null,2.59]
[null,2.6]
[null,2.61]
[null,2.62]
[null,2.63]
[null,2.64]
[null,2.65]
[null,2.66]
[null,2.67]
[null,2.68]
[null,2.69]
[null,2.7]
[null,2.71]
[null,2.72]
[null,2.73]
[null,2.74]
[null,2.75]
[null,2.76]
[null,2.77]
[null,2.78]
[null,2.79]
[null,2.8]
[null,2.81]
[null,2.82]
[null,2.83]
[null,2.84]
[null,2.85]
[null,2.86]
[null,2.87]
[null,2.88]
[null,2.89]
[null,2.9]
[null,2.91]
[null,2.92]
[null,2.93]
[null,2.94]
[null,2.95]
[null,2.96]
[null,2.97]
[null,2.98]
[null,2.99]
[null,3]
[null,3.01]
[null,3.02]
[null,3.03]
[null,3.04]
[null,3.05]
[null,3.06]
[null,3.07]
[null,3.08]
[null,3.09]
[null,3.1]
[null,3.11]
[null,3.12]
[null,3.13]
[null,3.14]
[null,3.15]
[null,3.16]
[null,3.17]
[null,3.18]
[null,3.19]
[null,3.2]
[null,3.21]
[null,3.22]
[null,3.23]
[null,3.24]
[null,3.25]
[null,3.26]
[null,3.27]
[null,3.28]
[null,3.29]
[null,3.3]
[null,3.31]
[null,3.32]
[null,3.33]
[null,3.34]
[null,3.35]
[null,3.36]
[null,3.37]
[null,3.38]
[null,3.39]
[null,3.4]
[null,3.41]
[null,3.42]
[null,3.43]
[null,3.44]
[null,3.45]
[null,3.46]
[null,3.47]
[null,3.48]
[null,3.49]
[null,3.5]
[null,3.51]
[null,3.52]
[null,3.53]
[null,3.54]
[null,3.55]
[null,3.56]
[null,3.57]
[null,3.58]
[null,3.59]
[null,3.6]
[null,3.61]
[null,3.62]
[null,3.63]
[null,3.64]
[null,3.65]
[null,3.66]
[null,3.67]
[null,3.68]
[null,3.69]
[null,3.7]
[null,3.71]
[null,3.72]
[null,3.73]
[null,3.74]
[null,3.75]
[null,3.76]
[null,3.77]
[null,3.78]
[null,3.79]
[null,3.8]
[null,3.81]
[null,3.82]
[null,3.83]
[null,3.84]
[null,3.85]
[null,3.86]
[null,3.87]
[null,3.88]
[null,3.89]
[null,3.9]
[null,3.91]
[null,3.92]
[null,3.93]
[null,3.94]
[null,3.95]
[null,3.96]
[null,3.97]
[null,3.98]
[null,3.99]
[null,4]
[null,4.01]
[null,4.0199999999999996]
[null,4.03]
[null,4.04]
[null,4.05]
[null,4.0599999999999996]
[null,4.07]
[null,4.08]
[null,4.09]
[null,4.0999999999999996]
[null,4.1100000000000003]
[null,4.12]
[null,4.13]
[null,4.1399999999999997]
[null,4.1500000000000004]
[null,4.16]
[null,4.17]
[null,4.18]
[null,4.1900000000000004]
[null,4.2]
[null,4.21]
[null,4.22]
[null,4.2300000000000004]
[null,4.24]
[null,4.25]
[null,4.26]
[null,4.2699999999999996]
[null,4.28]
[null,4.29]
[null,4.3]
[null,4.3099999999999996]
[null,4.32]
[null,4.33]
[null,4.34]
[null,4.3499999999999996]
[null,4.3600000000000003]
[null,4.37]
[null,4.38]
[null,4.3899999999999997]
[null,4.4000000000000004]
[null,4.41]
[null,4.42]
[null,4.43]
[null,4.4400000000000004]
[null,4.45]
[null,4.46]
[null,4.47]
[null,4.4800000000000004]
[null,4.49]
[null,4.5]
[null,4.51]
[null,4.5199999999999996]
[null,4.53]
[null,4.54]
[null,4.55]
[null,4.5599999999999996]
[null,4.57]
[null,4.58]
[null,4.59]
[null,4.5999999999999996]
[null,4.6100000000000003]
[null,4.62]
[null,4.63]
[null,4.6399999999999997]
[null,4.6500000000000004]
[null,4.66]
[null,4.67]
[null,4.68]
[null,4.6900000000000004]
[null,4.7]
[null,4.71]
[null,4.72]
[null,4.7300000000000004]
[null,4.74]
[null,4.75]
[null,4.76]
[null,4.7699999999999996]
[null,4.78]
[null,4.79]
[null,4.8]
[null,4.8099999999999996]
[null,4.82]
[null,4.83]
[null,4.84]
[null,4.8499999999999996]
[null,4.8600000000000003]
[null,4.87]
[null,4.88]
[null,4.8899999999999997]
[null,4.9000000000000004]
[null,4.91]
[null,4.92]
[null,4.93]
[null,4.9400000000000004]
[null,4.95]
[null,4.96]
[null,4.97]
[null,4.9800000000000004]
[null,4.99]
[null,5]
[null,5.01]
[null,5.0199999999999996]
[null,5.03]
[null,5.04]
["S:",{"$f":"SUM(B3:B506)","v":1272.6000000000001}]